[Event "4NCL 2021-22"]
[Site "England"]
[Date "2022.05.01"]
[Round "8.4"]
[White "Toma, Katarzyna"]
[Black "McDonald, Neil"]
[Result "1-0"]
[ECO "C11"]
[WhiteElo "2420"]
[BlackElo "2407"]
[Annotator "TA"]
[PlyCount "78"]
[EventDate "2021.11.27"]
[EventType "team-tourn"]
[EventCountry "ENG"]
[SourceTitle "playchess.com"]
[Source "ChessBase"]
[SourceQuality "1"]
[TimeControl "40/6000+30:3000+30"]

{[%evp 13,78,0,0,0,0,0,0,0,0,0,0,0,0,-29,-23,-34,-43,-45,-28,-35,-7,-44,-35,-50,-21,-21,10,0,0,-14,15,0,0,-13,11,-29,0,0,33,27,73,64,135,129,136,122,151,122,361,367,359,341,322,332,346,363,347,337,539,543,1042,1030,1956,6598,5609,2727,29985]} 1. e4 {[%emt 0:00:04]} e6 {[%emt 0:00:05]} 2. d4 {[%emt 0:00:06]} d5 {[%emt 0:00:03]} 3. Nc3 {[%emt 0:00:06][%cal Bb1c3,Bc3e2,Be2f4][%mdl 32]} Nf6 {[%emt 0:00:09]} 4. e5 {[%emt 0:00:09]} Nfd7 {[%emt 0:00:15]} 5. Nce2 {[%emt 0:00:06]} c5 {[%emt 0:00:22]} 6. c3 {[%emt 0:00:07]} Nc6 {[%emt 0:00:34]} 7. Nf3 {[%emt 0:00:07]} Be7 {[%emt 0:01:39]} 8. a3 {[%emt 0:00:12] C11: French: Classical System: 4 e5 and 4 Bg5 dxe4.} c4 {[%emt 0:01:55]} 9. Nf4 {[%emt 0:01:39]} Na5 {[%emt 0:02:11]} 10. Be3 {[%emt 0:03:50] The position is equal.} Nb6 {[%emt 0:03:12]} 11. h4 {[%emt 0:04:11]} Bd7 {[%emt 0:01:47]} 12. Nh5 {[%emt 0:17:07]} Ba4 {[%emt 0:05:19]} 13. Qe2 {[%emt 0:12:32] [#]} g6 $146 {[%emt 0:24:08]} ({Predecessor:} 13... Rg8 14. Bg5 h6 15. Bxe7 Qxe7 16. g3 Nd7 17. Bg2 O-O-O 18. Nf4 g6 19. Nh2 Qf8 {0-1 (48) Svetushkin,D (2544)-Salgado Lopez,I (2627) Saint Quentin 2014}) 14. Nf6+ {[%emt 0:02:48]} Bxf6 {[%emt 0:00:19]} 15. exf6 {[%emt 0:00:04]} Qxf6 {[%emt 0:05:30]} 16. g4 {[%emt 0:04:20]} Qe7 {[%emt 0:29:36]} 17. Bh3 {[%emt 0:03:08]} Nd7 {[%emt 0:16:48]} 18. Bf4 {[%emt 0:03:24]} Nc6 {[%emt 0:06:05]} 19. g5 {[%emt 0:08:10]} a5 {[%emt 0:02:39]} 20. Kf1 {[%emt 0:01:49]} b5 {[%emt 0:00:47]} 21. Kg2 {[%emt 0:00:19]} Ra6 {[%emt 0:01:41]} 22. Rhe1 {[%emt 0:01:36][%mdl 1024] White has compensation.} Kd8 {[%emt 0:02:20][%cal Be8d8,Bd8c8,Bc8b7][%mdl 32]} 23. Ne5 {[%emt 0:01:49][%cal Bf3e5,Be5g4,Bg4h6][%mdl 32]} Re8 {[%emt 0:00:25]} 24. Rac1 {[%emt 0:09:09]} Kc8 {[%emt 0:00:58]} 25. Ng4 {[%emt 0:02:17]} Kb7 {[%emt 0:00:37]} 26. Qf3 {[%emt 0:01:00]} Rb6 {[%emt 0:02:08]} (26... Rf8 $11) 27. Qg3 $16 {[%emt 0:04:06] Black must now prevent Bd6.} Qd8 {[%emt 0:00:26] [#]} (27... Ncb8 $14) 28. Nh6 $1 {[%emt 0:01:10]} Rf8 {[%emt 0:00:36]} 29. Bd6 {[%emt 0:01:24] Against e5} Ne7 {[%emt 0:00:13]} 30. Re2 {[%emt 0:00:30] White is much more active.} Nf5 $2 {[%emt 0:00:57] Black cannot hold the game after this.} (30... Rc6 $16) 31. Bxf5 $18 {[%emt 0:01:19]} gxf5 {[%emt 0:00:05]} 32. Bxf8 {[%emt 0:00:25]} Qxf8 {[%emt 0:00:24]} 33. Rce1 {[%emt 0:00:31]} b4 {[%emt 0:00:33]} 34. axb4 {[%emt 0:00:12]} axb4 {[%emt 0:00:05]} 35. cxb4 {[%emt 0:05:21]} ({Weaker is} 35. Ra1 Bb5 36. Qf4 b3 $18) 35... Rxb4 {[%emt 0:00:39]} (35... Bb5 {was called for.} 36. Qf4 Qg7) 36. Qa3 {[%emt 0:00:39] White is clearly winning.} Nb6 {[%emt 0:01:42] [#]} 37. Nxf7 $1 {[%emt 0:00:58][%mdl 512]} f4 {[%emt 0:01:12] [#]} (37... Bd7 38. Nd8+) 38. Rxe6 $1 {[%emt 0:01:21] White wants to mate with Nd6+.} Ka6 {[%emt 0:00:31]} (38... f3+ 39. Kg3) 39. Rf6 {[%emt 0:04:47]} Qc8 {[%emt 0:00:00] Weighted Error Value: White=0.08 (flawless) /Black=0.29 (precise)} 1-0

[Event "4NCL 2021-22"]
[Site "England"]
[Date "2022.05.01"]
[Round "8.5"]
[White "Harvey, Marcus R"]
[Black "Haydon, David L"]
[Result "1-0"]
[ECO "B38"]
[WhiteElo "2464"]
[BlackElo "2294"]
[Annotator "TA"]
[PlyCount "48"]
[EventDate "2021.11.27"]
[EventType "team-tourn"]
[EventCountry "ENG"]
[SourceTitle "playchess.com"]
[Source "ChessBase"]
[SourceQuality "1"]
[TimeControl "40/6000+30:3000+30"]

{[%evp 20,48,48,44,42,45,57,55,58,31,76,47,47,28,37,34,57,28,36,21,40,0,32,0,18,-37,112,106,218,213,417]} 1. c4 {[%emt 0:06:11]} Nf6 {[%emt 0:00:37]} 2. Nc3 {[%emt 0:00:50]} c5 {[%emt 0:04:37]} 3. Nf3 {[%emt 0:00:16]} Nc6 {[%emt 0:00:46]} 4. d4 {[%emt 0:00:13]} cxd4 {[%emt 0:03:03]} 5. Nxd4 {[%emt 0:00:07]} g6 {[%emt 0:00:40]} 6. e4 {[%emt 0:00:51]} d6 {[%emt 0:03:53]} 7. Be2 {[%emt 0:00:34]} Bg7 {[%emt 0:01:30]} 8. Be3 {[%emt 0:00:13]} Bd7 {[%emt 0:08:40]} 9. Rc1 {[%emt 0:03:04]} Rc8 {[%emt 0:04:40]} 10. O-O {[%emt 0:04:28]} O-O {[%emt 0:03:30]} 11. f3 {[%emt 0:18:24]} Nxd4 {[%emt 0:13:34] B38: Sicilian: Maroczy Bind with 5...Bg7 and 7...0-0.} 12. Bxd4 {[%emt 0:01:01]} Be6 {[%emt 0:10:07]} 13. b3 {[%emt 0:06:30]} a6 {[%emt 0:08:36] White is slightly better.} 14. f4 {[%emt 0:04:40]} Bd7 {[%emt 0:02:25]} 15. Bf3 {[%emt 0:16:52][%cal Be2f3,Bf3g4,Bg4h3][%mdl 32]} (15. e5 $5 {[%cal Re5f6]} Ne8 16. Qd2 $14) 15... Bc6 {[%emt 0:02:26] [#]} 16. Qd3 $146 {[%emt 0:11:24]} ({Predecessor:} 16. Qe2 Re8 17. Rcd1 Qa5 18. e5 Nd7 19. Nd5 Bxd5 20. cxd5 Qb4 21. Kh1 Nc5 22. Bb2 Qb5 23. Qd2 {1-0 (29) Kiolbasa,O (2255)-Avila Bautista,T (1642) Tornelo INT 2021}) 16... Nd7 {[%emt 0:08:41]} 17. Bxg7 {[%emt 0:00:23]} Kxg7 {[%emt 0:03:23]} 18. Qd4+ {[%emt 0:00:01]} Kg8 {[%emt 0:02:53]} 19. Bg4 {[%emt 0:00:45]} Rc7 {[%emt 0:00:39]} (19... b5 {keeps more tension.} 20. Nd5 e6 21. Ne3 Qb6) 20. e5 {[%emt 0:02:42]} dxe5 {[%emt 0:02:13]} 21. fxe5 {[%emt 0:00:02] Black should prevent e6.} e6 $1 {[%emt 0:00:23]} 22. Qd6 {[%emt 0:06:13]} ({White should play} 22. Bf3 $11) 22... Qg5 {[%emt 0:04:34]} 23. Qxc7 $16 {[%emt 0:02:08] White is more active.} Nxe5 {[%emt 0:00:20] [#]} (23... Qxg4 $16 24. Rf2 Qd4) 24. Bh3 $1 $18 {[%emt 0:02:15]} Qe3+ $2 {[%emt 0:01:12] Weighted Error Value: White=0.16 (very precise) /Black=0.30} (24... Nd3 {was necessary.} 25. Qg3 Qc5+ 26. Kh1 Nxc1) 1-0

[Event "4NCL 2021-22"]
[Site "England"]
[Date "2022.05.01"]
[Round "8.6"]
[White "O'Donnell, Conor"]
[Black "Czopor, Maciej"]
[Result "0-1"]
[ECO "D36"]
[WhiteElo "2281"]
[BlackElo "2416"]
[Annotator "TA"]
[PlyCount "72"]
[EventDate "2021.11.27"]
[EventType "team-tourn"]
[EventCountry "ENG"]
[SourceTitle "playchess.com"]
[Source "ChessBase"]
[SourceQuality "1"]
[TimeControl "40/6000+30:3000+30"]

{[%evp 12,72,18,13,22,11,12,22,11,-53,-39,-36,0,0,0,-7,7,0,0,0,0,-27,0,-41,-13,-21,-16,-31,0,0,4,-33,-13,-25,0,-7,0,0,10,0,1,0,5,-87,-89,-302,-275,-271,0,-264,0,-257,-135,-803,-821,-797,-817,-754,-720,-29976,-29975,-6302,-5787]} 1. d4 {[%emt 0:00:05]} Nf6 {[%emt 0:00:07]} 2. c4 {[%emt 0:00:07]} e6 {[%emt 0:00:02]} 3. Nc3 {[%emt 0:00:13]} d5 {[%emt 0:00:09]} 4. cxd5 {[%emt 0:00:55]} exd5 {[%emt 0:00:03]} 5. Bg5 {[%emt 0:00:21]} c6 {[%emt 0:00:04]} 6. e3 {[%emt 0:00:22]} Bd6 {[%emt 0:00:21]} 7. Qc2 {[%emt 0:06:00]} O-O {[%emt 0:02:32] D36: Queen's Gambit Declined: Exchange Variation: Main line (5 Bg5 c6 6 Qc2).} 8. Bd3 {[%emt 0:01:31][%cal Od3h7] Threatens to win with Bxh7+!} h6 {[%emt 0:00:04]} 9. Bh4 {[%emt 0:00:35]} Re8 {[%emt 0:01:07] The position is equal.} 10. Bg3 {[%emt 0:09:45]} (10. Nge2 $11) 10... Bxg3 $1 $15 {[%emt 0:10:36]} 11. hxg3 {[%emt 0:00:02]} Bg4 {[%emt 0:02:17][%cal Oc6c5]} (11... c5 $5 {[%cal Rc5d4]} 12. Nge2 (12. dxc5 d4 $15) 12... Nc6 $11) 12. Nf3 {[%emt 0:04:18]} Nbd7 {[%emt 0:00:45]} 13. O-O {[%emt 0:01:44] [#]} a5 $146 {[%emt 0:11:00]} ({Predecessor:} 13... Qe7 14. Rab1 a5 15. a3 Ne4 16. Bxe4 dxe4 17. Nd2 Bf5 18. b4 Nf6 19. Nc4 axb4 20. axb4 {0-1 (38) Vitenberg,N (2315)-Gorodetzky,D (2496) Chess.com INT 2021}) 14. Rfc1 {[%emt 0:03:34]} Qb8 {[%emt 0:05:39]} 15. Rab1 {[%emt 0:04:52]} Qd6 {[%emt 0:01:55]} 16. Bf5 {[%emt 0:10:44]} h5 {[%emt 0:27:26]} 17. Na4 {[%emt 0:12:00]} g6 {[%emt 0:02:42]} 18. Bd3 {[%emt 0:07:18]} Kg7 {[%emt 0:03:46]} 19. Nc5 {[%emt 0:00:53]} Bxf3 {[%emt 0:03:40]} 20. gxf3 {[%emt 0:00:28]} Nxc5 {[%emt 0:01:57]} 21. dxc5 {[%emt 0:03:49]} Qe5 {[%emt 0:05:19][%cal Oh5h4]} 22. Qa4 $1 {[%emt 0:04:58]} Nd7 {[%emt 0:02:10][%cal Bf6d7,Bd7f8,Bf8e6][%mdl 32]} 23. Kg2 $1 {[%emt 0:02:46]} Nf8 {[%emt 0:01:16]} 24. Rc2 {[%emt 0:04:54]} Ne6 {[%emt 0:00:20]} 25. f4 {[%emt 0:01:23]} Qf6 {[%emt 0:02:30]} 26. Rh1 {[%emt 0:01:06] Prevents h4.} Rh8 {[%emt 0:01:23]} 27. Qb3 {[%emt 0:02:10] [#]} (27. Rh4 $1 $11 {remains equal.}) 27... h4 $1 $17 {[%emt 0:02:43]} 28. Qxb7 $2 {[%emt 0:04:45]} (28. Qc3 $17) 28... Rab8 $19 {[%emt 0:02:45]} 29. Qa7 {[%emt 0:04:38]} Ra8 {[%emt 0:01:58]} 30. Qb7 {[%emt 0:00:31]} Rab8 {[%emt 0:00:06]} 31. Qa7 {[%emt 0:00:06]} d4 {[%emt 0:03:29]} (31... hxg3 $19 {Strongly threatening ...Rxh1.} 32. fxg3 Ra8) 32. e4 $2 {[%emt 0:05:42][%mdl 8192]} (32. Qxa5 $17 hxg3 33. fxg3) 32... hxg3 {[%emt 0:00:31]} 33. fxg3 {[%emt 0:01:37] [#]} Nxf4+ $1 {[%emt 0:03:50][%mdl 512]} 34. gxf4 {[%emt 0:00:07]} Qxf4 {[%emt 0:00:08] ( -> ...Qg4+)} 35. Qd7 {[%emt 0:08:08] Prevents Qg4+.} Qg5+ {[%emt 0:00:29]} 36. Kf3 {[%emt 0:00:18]} Qe3+ {[%emt 0:00:46] Weighted Error Value: White=0.55/Black=0.27 (precise)} 0-1

[Event "4NCL 2021-22"]
[Site "England"]
[Date "2022.05.01"]
[Round "8.7"]
[White "Hunt, Harriet V"]
[Black "Horton, Jamie A"]
[Result "0-1"]
[ECO "B12"]
[WhiteElo "2400"]
[BlackElo "2275"]
[Annotator "TA"]
[PlyCount "64"]
[EventDate "2021.11.27"]
[EventType "team-tourn"]
[EventCountry "ENG"]
[SourceTitle "playchess.com"]
[Source "ChessBase"]
[SourceQuality "1"]
[TimeControl "40/6000+30:3000+30"]

{[%evp 9,64,7,5,6,16,4,43,0,0,9,0,0,-8,-6,34,-20,23,0,-2,-12,-8,-63,-60,-75,-60,-164,-129,-143,-126,-145,-139,-165,-160,-157,-124,-140,-113,-142,-93,-252,-251,-335,-261,-250,-254,-565,-549,-679,-666,-651,-637,-636,-621,-857,-820,-725,-618]} 1. e4 {[%emt 0:00:01][%cal Be2e4,Be4e5][%mdl 32]} c6 {[%emt 0:03:12]} 2. d4 {[%emt 0:00:10]} d5 {[%emt 0:00:31]} 3. e5 {[%emt 0:00:09]} Bf5 {[%emt 0:00:12]} 4. h4 {[%emt 0:00:32]} h5 {[%emt 0:00:24]} 5. Bd3 {[%emt 0:00:23]} Bxd3 {[%emt 0:01:22]} 6. Qxd3 {[%emt 0:00:08][%cal Oe5e6] B12: Caro-Kann: Advance Variation.} Qa5+ {[%emt 0:11:20]} 7. Nd2 {[%emt 0:10:52][%cal Oe5e6]} Qa6 {[%emt 0:02:01]} 8. c4 {[%emt 0:02:55][%cal Oe5e6] [#] Strongly threatening e6! White is slightly better.} (8. e6 $5 {[%cal Re6f7]} Qxd3 9. exf7+ (9. cxd3 f6 $11) 9... Kxf7 10. cxd3 $14) 8... e6 {[%emt 0:00:36]} 9. Ngf3 {[%emt 0:06:24]} Nh6 {[%emt 0:09:00]} 10. O-O {[%emt 0:05:16]} Nf5 {[%emt 0:06:25]} 11. Qc2 {[%emt 0:04:56] [#] cxd5 is the strong threat.} b6 $146 {[%emt 0:11:46]} ({Predecessor:} 11... Nd7 12. b3 Be7 13. g3 Qb6 14. Bb2 Qd8 15. Rfd1 g5 16. hxg5 Bxg5 17. Nf1 Rg8 {0-1 (52) Isha,S (2185)-Bryakin,M (2500) Novi Sad 2021}) 12. a4 {[%emt 0:10:44]} (12. cxd5 $14 cxd5 {[#]} 13. Ne4 $1) 12... Nd7 {[%emt 0:09:39]} 13. a5 {[%emt 0:01:33]} Be7 {[%emt 0:09:50]} 14. g3 {[%emt 0:04:20]} O-O {[%emt 0:04:12]} 15. Qa4 {[%emt 0:00:48]} (15. b3 $11) 15... b5 $15 {[%emt 0:03:32]} 16. cxb5 {[%emt 0:00:15]} Qxb5 {[%emt 0:00:31]} 17. Qd1 {[%emt 0:03:46]} (17. Qxb5 $15 cxb5 18. Nb3) 17... g6 {[%emt 0:14:04]} 18. Nb1 {[%emt 0:05:28]} Rab8 {[%emt 0:03:33] 0x0.001e08f43c00dp-1022s more active pieces.} 19. Nc3 {[%emt 0:00:24]} Qb3 {[%emt 0:00:25]} 20. Qe2 {[%emt 0:08:29]} c5 {[%emt 0:03:54]} 21. Rd1 {[%emt 0:02:58]} Rb4 {[%emt 0:02:57]} 22. dxc5 {[%emt 0:00:36]} Bxc5 {[%emt 0:01:33] aiming for ...Nxg3.} 23. Kg2 {[%emt 0:01:43]} Qc4 {[%emt 0:05:42]} ({Better is} 23... Nd4 24. Nxd4 Rxd4 25. Rxd4 Bxd4) 24. Rd3 $2 {[%emt 0:03:31] Loses the game.} (24. Qxc4 $17 {was worth a try.} Rxc4 25. Ra4) 24... Rfb8 $19 {[%emt 0:01:04][%cal Oc5f2]} 25. a6 {[%emt 0:09:11]} Nd4 {[%emt 0:03:03]} ({Don't blunder} 25... Qg4 $2 26. Rd1 $19) 26. Nxd4 {[%emt 0:01:20]} Bxd4 {[%emt 0:00:06]} 27. f4 $2 {[%emt 0:02:48]} (27. Rd2 {is a better chance.}) 27... Nc5 {[%emt 0:01:20][%csl LRa6,LRd3] Black is clearly winning.} 28. Rxd4 {[%emt 0:02:42]} Qxd4 {[%emt 0:00:18]} 29. Be3 {[%emt 0:00:55]} Qc4 {[%emt 0:00:22]} 30. Qxc4 {[%emt 0:00:22]} Rxc4 {[%emt 0:00:06]} 31. Nd1 {[%emt 0:00:09]} d4 {[%emt 0:01:08]} 32. Bg1 {[%emt 0:00:07]} Rb6 {[%emt 0:00:42] Weighted Error Value: White=0.53/Black=0.16 (very precise)} 0-1

[Event "4NCL 2021-22"]
[Site "England"]
[Date "2022.05.01"]
[Round "8.8"]
[White "Sygnowski, Tomasz"]
[Black "Willow, Jonah B"]
[Result "1/2-1/2"]
[ECO "C28"]
[WhiteElo "2119"]
[BlackElo "2365"]
[Annotator "TA"]
[PlyCount "121"]
[EventDate "2021.11.27"]
[EventType "team-tourn"]
[EventCountry "ENG"]
[SourceTitle "playchess.com"]
[Source "ChessBase"]
[SourceQuality "1"]
[TimeControl "40/6000+30:3000+30"]

{[%evp 11,121,-25,-25,-25,-12,-26,-22,-35,-34,-43,-13,-25,-27,-74,-33,-37,-22,-32,13,14,201,0,0,0,0,23,10,0,0,4,7,-135,-135,-111,86,-4,-12,-12,-22,-41,135,0,0,0,0,0,0,0,0,0,0,0,0,0,0,0,0,-6,0,0,0,0,0,0,0,0,77,75,81,100,79,56,101,29,47,47,47,0,0,0,0,0,55,60,51,0,75,0,89,0,0,0,0,0,0,0,0,0,0,0,0,0,0,0,0,0,0,0,0,0,0,0]} 1. e4 {[%emt 0:00:05]} e5 {[%emt 0:00:46]} 2. Nc3 {[%emt 0:02:06]} Nc6 {[%emt 0:00:58]} 3. Bc4 {[%emt 0:02:05]} Nf6 {[%emt 0:00:28]} 4. d3 {[%emt 0:02:36]} Na5 {[%emt 0:00:12]} 5. Nf3 {[%emt 0:00:24]} Nxc4 {[%emt 0:00:16]} 6. dxc4 {[%emt 0:00:06]} Bb4 {[%emt 0:00:02]} 7. Bd2 {[%emt 0:04:30] C28: Vienna Game: 2...Nf6 3 Bc4 Nc6.} d6 {[%emt 0:03:11] White should prevent ...Bxc3.} 8. Qe2 {[%emt 0:00:44]} O-O {[%emt 0:00:47]} 9. O-O-O {[%emt 0:00:30] [#]} a5 $146 {[%emt 0:01:03]} ({Predecessor:} 9... Bd7 10. a3 Bxc3 11. Bxc3 Qb8 12. Nh4 Bc6 13. f3 Re8 14. Nf5 Re6 15. h4 b5 {1-0 (38) Stockova,Z (2378)-Kozak,M (2145) Czech Republic 2015}) 10. h3 {[%emt 0:10:10]} Nd7 {[%emt 0:00:12]} 11. g4 {[%emt 0:01:05]} Nc5 {[%emt 0:02:43]} 12. Ne1 {[%emt 0:14:36]} (12. Nd5 $11 {feels stronger.}) 12... Ne6 {[%emt 0:10:07]} 13. Ng2 {[%emt 0:03:20]} Qe8 {[%emt 0:01:29]} 14. Ne3 {[%emt 0:08:48]} Nd4 {[%emt 0:11:30]} 15. Qd3 {[%emt 0:00:37]} Nf3 $2 {[%emt 0:00:45]} (15... Ne6 $11 {and Black stays safe.}) 16. Nf5 $2 {[%emt 0:10:35]} (16. Ned5 $18 Nxd2 17. Nxc7 (17. Rxd2 Qd8 $15)) 16... Nxd2 $11 {[%emt 0:00:23]} 17. Qxd2 {[%emt 0:00:23][%cal Of5g7]} Qd8 {[%emt 0:06:55]} 18. a3 {[%emt 0:11:16]} Bc5 {[%emt 0:07:48]} 19. Nd5 {[%emt 0:01:45]} Be6 {[%emt 0:10:10]} 20. Nde7+ {[%emt 0:11:27] Pair of Knights!} Kh8 {[%emt 0:00:02]} 21. Qg5 {[%emt 0:00:06]} (21. h4 $1 $11) 21... Bxf5 $17 {[%emt 0:01:49]} 22. gxf5 {[%emt 0:01:28]} h6 $2 {[%emt 0:02:36] [#]} (22... f6 $17 {keeps the pressure on.} 23. Ng6+ Kg8) 23. Qh4 {[%emt 0:05:31] [#] White is much more active.} (23. h4 $1 $16 {[%cal Of5f6]} f6 24. Ng6+ Kg8 25. Qd2) 23... Bxf2 $1 $11 {[%emt 0:00:32]} 24. Qxf2 {[%emt 0:00:48]} Qxe7 {[%emt 0:00:19]} 25. Rhg1 {[%emt 0:00:09][%cal Og1g7]} Ra6 $2 {[%emt 0:03:47] [#]} (25... Rg8 $15) 26. Rg4 {[%emt 0:00:37]} ({White has to play} 26. Rxg7 $1 $16 {[%mdl 512] White wants to mate with f6.} Qf6 27. Rdg1) 26... Qf6 {[%emt 0:00:59]} 27. Rdg1 {[%emt 0:00:05]} Rg8 {[%emt 0:00:15]} 28. a4 {[%emt 0:00:59]} Raa8 {[%emt 0:08:55]} 29. h4 {[%emt 0:05:03]} g6 {[%emt 0:04:47]} 30. Qg2 {[%emt 0:03:02]} Kh7 {[%emt 0:00:22]} 31. Rf1 {[%emt 0:02:08] Strongly threatening fxg6+.} gxf5 {[%emt 0:00:35]} 32. Rxf5 {[%emt 0:00:11]} Rxg4 {[%emt 0:03:53]} 33. Qxg4 {[%emt 0:00:53][%mdl 4096] Endgame KQR-KQR} Qg6 {[%emt 0:00:15]} 34. Qf3 {[%emt 0:00:28]} ({Reject} 34. Qxg6+ Kxg6 35. c5 Rc8 $15) 34... Rf8 {[%emt 0:00:29]} 35. b3 {[%emt 0:02:51]} f6 {[%emt 0:03:19]} 36. Kb2 {[%emt 0:00:13]} Kg7 {[%emt 0:02:05]} 37. Qe2 {[%emt 0:02:05]} Qg3 {[%emt 0:03:06]} 38. h5 {[%emt 0:00:30]} Rg8 {[%emt 0:07:29] [#]} (38... b6 $11 {keeps the balance.}) 39. c5 $1 $16 {[%emt 0:01:55]} dxc5 {[%emt 0:03:40]} 40. Qb5 {[%emt 0:00:59][%csl LRa5,LRb7,LRc5] Qd7+ is the strong threat.} Rf8 {[%emt 0:08:04]} 41. Qxb7 {[%emt 0:52:37]} (41. Qxc5 $5 {[%cal Rf5f1]} Rf7 42. Rf1 $14) 41... Rf7 {[%emt 0:50:59] [#]} 42. Qc6 {[%emt 0:00:00]} (42. Rf1 $1 $16) 42... Qe3 $11 {[%emt 0:00:00]} 43. Rf1 {[%emt 0:00:00] And now Rd1 would win.} Qd4+ {[%emt 0:00:00]} 44. Ka2 {[%emt 0:00:00]} (44. Kb1 $14) 44... c4 $1 {[%emt 0:00:00]} 45. bxc4 {[%emt 0:00:00]} Qd2 $1 {[%emt 0:00:00]} 46. Kb1 {[%emt 0:00:00]} Qg2 {[%emt 0:00:00] Against Rg1} (46... Qb4+ $11 47. Ka2 Qd2) 47. Rd1 $14 {[%emt 0:00:00]} Qg4 {[%emt 0:00:00][%csl LRd1,LRh5] Against Qe6} 48. Rd8 {[%emt 0:00:00]} (48. Rh1 $14) 48... Qg1+ {[%emt 0:00:00]} (48... Qxh5 $11 49. Qe8 Kg6) 49. Ka2 {[%emt 0:00:00]} ({White should try} 49. Kb2 $16 Qb6+ 50. Qxb6 cxb6 51. Rb8) 49... Qf2 {[%emt 0:00:00]} (49... Qc1 $11) 50. Qe8 {[%emt 0:00:00]} (50. Kb2 $16 {Threatens to win with Qe8.} Qb6+ 51. Qxb6 cxb6 52. Rb8) 50... Qxc2+ $11 {[%emt 0:00:00] The position is equal.} 51. Ka1 {[%emt 0:00:00][%csl Gd8][%cal Re8g8]} Qc1+ {[%emt 0:00:00]} 52. Ka2 {[%emt 0:00:00][%csl Gd8][%cal Re8g8] The board is on fire.} Qxc4+ {[%emt 0:00:00]} 53. Ka1 {[%emt 0:00:00][%csl Gd8][%cal Re8g8]} Qc3+ {[%emt 0:00:00]} 54. Ka2 {[%emt 0:00:00][%csl Gd8][%cal Re8g8]} Qc4+ {[%emt 0:00:00]} 55. Ka1 {[%emt 0:00:00][%csl Gd8][%cal Re8g8]} Qf1+ {[%emt 0:00:00]} 56. Ka2 {[%emt 0:00:00][%csl Gd8][%cal Re8g8]} Qf2+ {[%emt 0:00:00]} 57. Ka1 {[%emt 0:00:00][%csl Gd8][%cal Re8h8]} Qe1+ {[%emt 0:00:00]} 58. Ka2 {[%emt 0:00:00][%csl Gd8][%cal Re8g8]} Qe2+ {[%emt 0:00:16]} 59. Ka1 {[%emt 0:00:00][%csl Gd8][%cal Re8h8]} Qf1+ {[%emt 0:02:18]} 60. Ka2 {[%emt 0:00:00][%csl Gd8][%cal Re8g8]} Qc4+ {[%emt 0:00:05]} 61. Ka1 {[%emt 0:00:00] Weighted Error Value: White=0.25 (precise) /Black=0.27 (precise)} 1/2-1/2